bitfinex-derivatives/quotes_ETHF0:USTF0_20260201
["timestamp","ask_amount","ask_price","bid_price","bid_amount"]
[1769983323087,3.79253339,2292.0,2290.8,2.5040052]
[1769983323287,4.62639,2292.1,2290.9,6.35713715]
[1769983323483,2.57702496,2292.3,2291.0,2.5040052]
[1769983323689,2.57702496,2292.7,2291.3,2.5040052]
[1769983323892,3.79149796,2292.6,2291.3,2.5040052]
[1769983324182,2.57702496,2292.7,2291.6,2.5040052]
[1769983324388,2.57702496,2292.7,2290.7,4.14952]
[1769983324389,6.98802496,2292.8,2291.7,2.5040052]
[1769983324589,2.58142778,2293.0,2291.7,2.5040052]
[1769983324886,3.78870854,2292.9,2290.8,2.5040052]
[1769983325090,0.21835,2292.5,2291.0,2.5040052]
[1769983325290,4.42,2292.4,2291.0,2.5040052]
[1769983325490,4.42,2292.4,2291.2,2.5040052]
[1769983325882,4.42,2292.4,2291.4,2.5040052]
[1769983326085,4.42,2292.4,2290.4,0.21855]
[1769983326086,0.21839,2292.1,2290.8,2.5040052]
[1769983326286,0.21843,2291.7,2290.4,2.5040052]
[1769983326592,4.64543,2291.7,2290.4,2.5040052]
[1769983326788,3.78853162,2291.6,2290.4,2.5040052]
[1769983326988,4.64543,2291.7,2290.4,2.5040052]
[1769983327289,0.21843,2291.6,2290.5,2.5040052]
[1769983327483,3.78900473,2291.5,2290.5,2.5040052]
[1769983327685,0.21843,2291.6,2290.2,2.5044602]
[1769983327881,3.78856933,2291.5,2290.2,2.5044602]
[1769983328085,6.99746438,2291.7,2290.3,2.50970212]
[1769983328283,2.57046438,2291.9,2290.6,2.5044602]
[1769983328493,7.00546438,2291.8,2290.6,2.5044602]
[1769983328688,3.78940142,2291.7,2290.6,2.5044602]
[1769983329081,2.57046438,2291.6,2290.3,1.92e-06]
[1769983329286,0.2185,2291.0,2289.6,2.5044602]
[1769983329482,8.23040142,2290.9,2289.6,2.5044602]
[1769983329686,3.78940142,2290.8,2289.6,2.5044602]
[1769983329885,4.441,2290.9,2289.6,2.5044602]
[1769983330085,3.78778865,2290.8,2289.6,2.5044602]
[1769983330289,0.00369163,2290.8,2289.6,2.50754195]
[1769983330685,0.00369163,2290.8,2289.6,6.3606739]
[1769983330894,0.00369163,2290.8,2289.9,6.35759215]
[1769983331392,0.00369163,2290.8,2290.1,3.85313195]
[1769983331588,0.00369163,2290.8,2290.0,6.35759215]
[1769983331788,0.00369163,2290.8,2290.2,3.85313195]
[1769983331989,0.00369163,2290.8,2289.6,0.00308175]
[1769983331990,2.78890438,2291.6,2290.5,3.85313195]
[1769983332191,8.24172259,2291.5,2289.8,2.5044602]
[1769983332387,4.456,2291.5,2290.4,2.5044602]
[1769983332596,4.456,2291.5,2290.5,2.5044602]
[1769983332797,4.456,2291.5,2290.7,3.85313195]
[1769983333195,0.2185,2290.9,2289.8,5.0664602]
[1769983333492,0.21853,2290.7,2290.0,2.5044602]
[1769983333889,4.457,2290.9,2289.7,2.5044602]
[1769983334089,3.78666322,2290.8,2289.7,2.5044602]
[1769983334297,3.78638077,2290.7,2289.7,2.5044602]
[1769983334599,4.457,2290.9,2289.7,2.5044602]
[1769983334893,0.21854,2290.5,2289.7,2.5044602]
[1769983335400,0.21854,2290.5,2289.9,2.57003195]
[1769983335596,0.00043243,2291.0,2290.1,2.5044602]
[1769983335797,0.21848,2291.2,2290.3,2.5044602]
[1769983336200,0.00442063,2291.5,2290.3,2.5044602]
[1769983336597,0.21847,2291.2,2290.3,2.5044602]
[1769983337896,0.21851,2290.9,2289.7,2.5044602]
[1769983338797,0.00442063,2291.5,2289.7,2.5044602]
[1769983339194,0.00442063,2291.5,2289.9,2.7230502]
[1769983339398,0.00442063,2291.5,2290.1,2.5044602]
[1769983339594,5.14184984,2292.4,2290.6,2.5044602]
[1769983339595,37.92450349,2292.4,2290.6,2.5044602]
[1769983339795,42.37750349,2293.1,2290.8,2.7229602]
[1769983340101,3.932,2293.3,2290.7,6.679]
[1769983340102,3.75013579,2293.0,2291.0,2.5044602]
[1769983340297,37.92450349,2293.4,2291.2,2.5044602]
[1769983340498,0.00351266,2293.4,2291.6,2.5044602]
[1769983340703,0.00351266,2293.4,2291.6,2.50999143]
[1769983341099,0.00351266,2293.4,2291.9,2.5044602]
[1769983341304,0.00351266,2293.4,2292.1,2.5044602]
[1769983344908,3.74677318,2293.3,2292.1,2.5044602]
[1769983345104,0.00351266,2293.4,2292.1,2.5044602]
[1769983345305,3.74568787,2293.3,2292.1,2.5044602]
[1769983345602,0.00351266,2293.4,2292.1,2.5044602]
[1769983345800,3.74617118,2293.3,2292.1,2.5044602]
[1769983346005,0.00351266,2293.4,2292.1,2.5044602]
[1769983348703,37.92450349,2294.5,2292.1,2.7228402]
[1769983349106,3.74571469,2294.4,2292.1,2.7228402]
[1769983349308,37.92450349,2294.7,2292.2,2.5044602]
[1769983349507,3.74309995,2294.6,2292.2,2.5044602]
[1769983349709,3.74309995,2294.5,2292.2,2.5044602]
[1769983349908,0.00442232,2294.6,2292.2,2.5044602]
[1769983350115,3.74319524,2294.5,2292.2,2.5044602]
[1769983350309,0.00442232,2294.6,2292.2,2.5044602]
[1769983350608,3.74078923,2294.5,2292.2,2.5044602]
[1769983350809,0.00442232,2294.6,2292.2,2.5044602]
[1769983351009,3.73973249,2294.5,2292.2,2.5044602]
[1769983351204,0.00442232,2294.6,2292.2,2.5044602]
[1769983351403,3.73691967,2294.5,2292.2,2.5044602]
[1769983351602,3.73691967,2294.4,2292.4,2.5044602]
[1769983351809,0.00442232,2294.6,2292.4,2.5044602]
[1769983352010,3.73661208,2294.5,2292.4,2.5044602]
[1769983352211,0.00442232,2294.6,2292.4,2.5044602]
[1769983352509,3.73432636,2294.5,2292.4,2.5044602]
[1769983352709,0.00442232,2294.6,2292.4,2.5044602]
[1769983352910,3.73432968,2294.5,2292.4,2.5044602]
[1769983353111,0.00442232,2294.6,2292.4,2.5044602]
[1769983353311,3.73208019,2294.5,2292.4,2.5044602]
[1769983353508,0.00442232,2294.6,2292.4,2.7228202]
[1769983353909,0.00442232,2294.6,2293.0,2.5044602]
[1769983354105,38.27362369,2295.5,2293.2,2.5044602]
[1769983354311,0.30245091,2296.0,2294.3,2.5044602]
[1769983354505,6.63161276,2296.9,2294.2,0.21818]
[1769983354506,38.13141601,2297.4,2295.2,2.47859918]
[1769983354713,0.72721343,2297.8,2295.4,2.69666918]
[1769983354912,0.72721343,2297.8,2295.6,2.47859918]
[1769983354913,0.21785,2297.8,2295.6,2.47859918]
[1769983355109,4.98236343,2298.2,2295.9,2.47859918]
[1769983355313,0.51429513,2297.8,2296.1,2.47859918]
[1769983355511,0.51429513,2297.8,2296.3,2.47859918]
[1769983357007,0.73214513,2297.8,2296.3,2.47859918]
[1769983357210,0.51429513,2297.8,2296.3,2.47859918]
[1769983357411,0.0049317,2297.8,2296.3,2.47859918]
[1769983357719,0.44579316,2297.5,2295.7,2.28039087]
[1769983358023,0.44579316,2297.0,2295.7,2.28039087]
[1769983358315,0.44579316,2296.9,2295.7,2.28039087]
[1769983358515,0.44579316,2296.8,2295.6,0.00518494]
[1769983359013,3.986,2297.0,2295.6,2.28557581]
[1769983359219,0.44579316,2297.6,2295.6,2.28557581]
[1769983359413,0.0049317,2297.8,2295.6,2.28557581]
[1769983359618,3.51360043,2298.3,2295.6,2.28557581]
[1769983359619,0.44579316,2298.8,2296.6,2.28039087]
[1769983359823,0.44579316,2298.8,2296.8,2.28039087]
[1769983360015,0.40480384,2298.1,2296.8,2.28039087]
[1769983360616,0.40781011,2298.1,2296.8,2.28039087]
[1769983360924,0.21776,2298.7,2296.8,2.28039087]
[1769983361225,0.40480384,2298.6,2296.8,2.28039087]
[1769983361626,0.62264384,2297.9,2296.0,2.30088553]
[1769983361921,2.558,2298.0,2296.0,2.30088553]
[1769983362121,0.21784,2297.9,2296.0,2.30088553]
[1769983362319,0.36689777,2297.8,2296.0,2.30088553]
[1769983362720,0.58473777,2297.9,2296.0,2.30088553]
[1769983363021,0.36689777,2297.7,2296.0,2.30088553]
[1769983363223,0.36689777,2297.4,2296.0,2.30088553]
[1769983363427,0.36689777,2297.3,2295.6,2.3250235]
[1769983363630,0.21792,2297.0,2295.6,2.3250235]
[1769983364230,2.557,2297.2,2295.6,2.3250235]
[1769983364627,0.21788,2297.4,2295.6,2.3250235]
[1769983364826,3.924,2297.9,2295.6,2.3250235]
[1769983365029,3.924,2297.9,2295.8,2.32440937]
[1769983365227,0.21786,2297.7,2296.0,2.32440937]
[1769983367734,0.21791,2297.2,2296.0,2.32440937]
[1769983368932,0.35536208,2297.8,2296.0,2.32440937]
[1769983369132,0.21786,2297.6,2296.0,2.32440937]
[1769983369533,0.21788,2297.5,2296.0,2.32440937]
[1769983369932,3.924,2297.9,2296.0,2.32440937]
[1769983370228,0.21786,2297.7,2296.0,2.32440937]
[1769983371037,37.92450349,2298.7,2295.6,6.48618494]
[1769983371038,0.56942192,2298.9,2296.7,2.50292246]
[1769983371332,0.21774,2298.9,2297.1,2.72083246]
[1769983371532,0.21775,2298.8,2297.3,2.50292246]
[1769983371732,0.2178,2298.3,2297.3,2.50749589]
[1769983371933,0.35124872,2298.5,2297.3,0.00457343]
[1769983372134,0.21782,2298.1,2297.3,0.00457343]
[1769983372435,0.21777,2298.6,2297.3,2.50749589]
[1769983373537,0.21772,2299.1,2297.3,2.50749589]
[1769983374130,37.92450349,2300.0,2297.6,2.50292246]
[1769983374331,0.21762,2300.2,2298.0,2.72074246]
[1769983374533,0.53200139,2299.8,2298.2,2.50292246]
[1769983374733,0.21767,2299.7,2298.2,2.50292246]
[1769983374932,0.21768,2299.6,2298.2,2.50292246]
[1769983375930,0.53155841,2299.8,2298.2,2.50292246]
[1769983376136,0.21767,2299.7,2298.2,2.50292246]
[1769983377236,3.922,2299.9,2298.2,2.50292246]
[1769983377834,0.21756,2300.9,2298.9,2.50292246]
[1769983378134,0.22196456,2301.0,2299.1,2.50292246]
[1769983378437,0.22196456,2301.0,2299.4,2.50292246]
[1769983379332,0.31608175,2302.3,2299.6,2.50292246]
[1769983379541,0.21745,2302.0,2300.1,2.50292246]
[1769983379839,4.05164674,2301.3,2299.1,0.00482705]
[1769983380040,8.52362934,2301.2,2299.1,0.00482705]
[1769983380235,7.537,2301.2,2299.1,0.00482705]
[1769983380430,3.92,2301.2,2299.1,0.00482705]
[1769983380637,0.21752,2301.3,2299.1,0.00482705]
[1769983381037,0.98662934,2301.4,2299.1,0.00482705]
[1769983381235,0.98662934,2301.2,2299.1,0.00482705]
[1769983381433,0.21759,2300.6,2299.1,0.00482705]
[1769983381637,0.21761,2300.4,2299.1,0.00482705]
[1769983381837,1.20423934,2300.4,2299.1,0.00482705]
[1769983382134,0.96487373,2300.0,2299.1,7.05e-06]
[1769983382340,0.21767,2299.7,2297.5,3.919]
[1769983382634,9.32374027,2300.0,2297.9,0.21783]
[1769983382835,9.32374027,2300.0,2297.5,6.473]
[1769983383143,0.21771,2299.3,2297.5,6.473]
[1769983383437,3.72614165,2299.2,2297.5,6.47810815]
[1769983383634,0.21766,2299.8,2297.5,6.47810815]
[1769983383841,0.99176931,2300.4,2298.2,0.2178]
[1769983384039,0.98478724,2300.2,2298.2,0.2178]
[1769983384236,0.00402904,2300.4,2298.4,2.50292246]
[1769983384439,0.00402904,2300.4,2298.6,2.50292246]
[1769983384640,0.00402904,2300.4,2298.8,2.50292246]
[1769983385438,1.20228724,2301.5,2299.0,2.50292246]
[1769983385635,3.95465132,2301.4,2299.0,2.50292246]
[1769983385835,0.98478724,2301.2,2299.0,2.50292246]
[1769983386040,0.98478724,2300.9,2299.0,2.50292246]
[1769983386239,0.21757,2300.7,2299.0,2.50292246]
[1769983386442,4.418,2300.8,2299.0,2.50292246]
[1769983386639,3.73423844,2300.7,2299.0,2.50292246]
[1769983386839,0.21763,2300.2,2299.0,2.50292246]
[1769983387242,0.68840465,2300.7,2299.0,2.50292246]
[1769983387442,3.73325144,2300.6,2299.0,2.50292246]
[1769983387739,3.73325144,2300.5,2299.0,2.50292246]
[1769983387941,3.73325144,2300.5,2298.3,0.21779]
[1769983387942,0.69990115,2300.1,2298.3,2.41982694]
[1769983388143,3.95138087,2300.0,2298.3,2.41982694]
[1769983388337,3.73551923,2299.9,2298.3,2.41982694]
[1769983388533,3.95311695,2299.8,2298.3,2.41982694]
[1769983388738,0.21772,2299.2,2297.8,2.41982694]
[1769983388940,3.73453859,2299.1,2297.8,2.41982694]
[1769983389140,3.7365373,2299.0,2297.8,2.41982694]
[1769983389336,0.69990115,2299.1,2297.8,2.41982694]
[1769983389337,3.95548376,2298.9,2297.8,2.41982694]
[1769983389645,0.21774,2298.9,2297.8,2.41982694]
[1769983390446,38.14218349,2299.6,2297.8,2.41982694]
[1769983390642,0.21773,2299.1,2297.8,2.41982694]
[1769983390848,0.21774,2298.9,2297.8,2.41982694]
[1769983391540,0.21775,2298.8,2297.8,2.41982694]
[1769983392143,3.73846073,2298.7,2297.5,0.00510815]
[1769983392446,0.21775,2298.8,2297.5,0.00510815]
[1769983392447,3.73924057,2298.6,2297.5,0.00510815]
[1769983392746,0.21775,2298.8,2297.5,0.00510815]
[1769983392940,3.73937699,2298.7,2297.5,2.42493509]
[1769983393146,0.21775,2298.8,2297.5,2.42493509]
[1769983393347,3.74016013,2298.7,2297.5,2.42493509]
[1769983393548,0.21775,2298.8,2297.5,2.42493509]
[1769983393845,3.74200906,2298.7,2297.5,2.42493509]
[1769983394044,0.21775,2298.8,2297.5,2.42493509]
[1769983394243,3.74963257,2298.7,2297.5,2.42493509]
[1769983394444,0.21771,2299.3,2297.5,2.42493509]
[1769983394648,3.75066282,2299.2,2297.5,2.42493509]
[1769983394942,0.56539309,2298.8,2297.5,2.42493509]
[1769983395147,0.21781,2298.2,2297.5,2.42493509]
[1769983395347,0.21781,2298.2,2297.5,8.15e-06]
[1769983395547,0.21781,2298.2,2297.5,2.41983509]
[1769983395746,2.57429704,2298.8,2297.5,2.41983509]
[1769983395944,0.21776,2298.7,2297.5,2.41983509]
[1769983396141,3.7510707,2298.9,2297.5,2.41983509]
[1769983396142,3.7510707,2298.6,2297.5,2.41983509]
[1769983396340,2.79199704,2299.3,2297.6,2.41982694]
[1769983396549,3.75360234,2299.2,2297.6,2.41982694]
[1769983396749,3.75360234,2299.1,2297.6,2.41982694]
[1769983396945,0.21772,2299.1,2297.6,2.41982694]
[1769983397150,3.75347728,2299.0,2297.6,2.41982694]
[1769983397350,0.00136712,2299.0,2297.6,2.41982694]
[1769983397644,3.97256892,2298.9,2297.6,2.41982694]
[1769983397949,3.75482892,2298.8,2297.6,2.41982694]
[1769983398846,0.00136712,2299.0,2297.6,2.41982694]
[1769983399240,2.57429704,2299.5,2297.6,2.41982694]
[1769983399446,2.79193704,2300.0,2298.0,2.63764694]
[1769983399750,2.57429704,2300.2,2298.2,2.63762694]
[1769983399951,2.57429704,2300.3,2298.4,2.41982694]
[1769983400151,2.57429704,2300.3,2298.6,2.41982694]
[1769983400952,2.57429704,2300.4,2298.6,2.41982694]
[1769983401554,2.57429704,2300.8,2298.8,2.41982694]
[1769983401847,2.57429704,2301.2,2299.3,2.63752694]
[1769983402044,4.83523343,2301.3,2299.5,2.41982694]
[1769983402248,2.57429704,2301.3,2299.7,2.41982694]
[1769983402452,2.58050975,2301.8,2300.0,2.63745694]
[1769983402653,2.26093639,2302.0,2300.0,2.41982694]
[1769983402954,2.26093639,2301.3,2300.0,2.41982694]
[1769983403152,37.92450349,2301.9,2300.0,2.41982694]
[1769983403353,2.26093639,2302.1,2300.0,2.41982694]
[1769983403753,2.26093639,2302.1,2300.2,2.63744694]
[1769983404048,37.92450349,2302.5,2300.6,0.21758]
[1769983404249,37.92450349,2302.9,2300.8,2.41982694]
[1769983404450,0.21738,2302.7,2300.8,2.41982694]
[1769983404655,2.26093639,2302.3,2300.8,2.41982694]
[1769983404951,2.26093639,2302.1,2300.8,2.41982694]
[1769983406048,2.26093639,2302.1,2299.5,3.8712171]
[1769983406049,2.47839639,2301.9,2300.4,2.41982694]
[1769983406249,31.34275204,2302.4,2300.4,2.41982694]
[1769983406448,4.13896456,2306.0,2301.1,3.4875083]
[1769983406651,0.21714,2305.3,2303.3,7.66953537]
[1769983406856,0.0755638,2305.5,2303.4,5.15946506]
[1769983407155,0.0755638,2305.5,2302.5,5.11211997]
[1769983407156,0.21723,2304.3,2302.5,5.11211997]
[1769983407352,0.21719,2304.8,2302.6,5.15103828]
[1769983407551,29.60518848,2305.4,2303.1,5.11211997]
[1769983407854,29.60518848,2305.4,2303.5,5.11211997]
[1769983408055,0.21714,2305.3,2303.6,5.15103828]
[1769983408255,4.498,2305.2,2303.7,5.15103828]
[1769983408453,34.10318848,2305.2,2303.5,0.00331734]
[1769983408648,4.499,2305.1,2303.5,0.00331734]
[1769983408854,2.50368346,2304.8,2303.5,0.00331734]
[1769983409052,2.50368346,2304.8,2297.0,0.65452]
[1769983409053,2.50368346,2304.0,2302.5,5.11211997]
[1769983409252,2.50368346,2303.8,2302.2,5.05563578]
[1769983409559,5.69068346,2303.7,2302.0,0.21744]
[1769983409855,36.61087194,2303.7,2302.0,10.16775575]
[1769983410159,2.50368346,2303.2,2302.0,0.00305836]
[1769983410456,9.01227594,2302.9,2301.1,5.11211997]
[1769983410655,4.503,2302.8,2301.2,10.16812687]
[1769983410860,2.50368346,2302.7,2301.1,5.0560069]
[1769983411062,29.60518848,2302.8,2300.9,5.11211997]
[1769983411359,2.50368346,2304.1,2301.3,5.11211997]
[1769983411557,2.50368346,2304.5,2302.5,5.11211997]
[1769983411859,0.0011748,2303.7,2302.5,5.11211997]
[1769983412460,0.0011748,2303.7,2302.4,5.11211997]
[1769983413358,0.0011748,2303.7,2302.3,10.16812687]
[1769983413560,0.0011748,2303.7,2302.5,5.11211997]
[1769983413856,0.0011748,2303.7,2302.3,5.0560069]
[1769983414064,0.0011748,2303.7,2302.5,0.01628317]
[1769983414661,2.55,2304.2,2302.5,0.01628317]
[1769983414860,2.49612928,2304.1,2302.5,0.01628317]
[1769983415062,2.49612928,2304.5,2302.5,0.01628317]
[1769983415264,6.463,2304.4,2302.5,0.01628317]
[1769983415559,2.49612928,2304.4,2302.5,0.01628317]
[1769983415757,8.96373161,2304.4,2302.6,0.01510837]
[1769983416056,2.68660233,2304.4,2302.7,0.01510837]
[1769983416259,9.00199643,2304.3,2302.7,0.01510837]
[1769983416456,2.49340395,2305.6,2303.4,0.21731]
[1769983416860,2.50368346,2305.4,2303.4,0.21731]
[1769983417163,2.50368346,2305.1,2303.0,5.0560069]
[1769983417364,8.96568346,2305.0,2302.9,0.21736]
[1769983418056,8.96568346,2305.0,2302.7,5.11211997]
[1769983418057,2.50101859,2304.9,2303.0,0.21735]
[1769983418262,2.50101859,2304.6,2302.6,7.82319055]
[1769983418466,2.50101859,2304.6,2302.6,2.76718365]
[1769983418763,8.53000553,2304.5,2302.6,2.76718365]
[1769983418962,2.50101859,2304.5,2302.6,2.76718365]
[1769983419266,3.912,2304.7,2303.0,0.21735]
[1769983420165,6.02898694,2304.4,2302.6,0.00318365]
[1769983420358,2.50101859,2304.5,2302.7,0.21738]
[1769983420564,2.50101859,2304.9,2302.6,0.00318365]
[1769983420764,2.50101859,2304.9,2302.9,0.21736]
[1769983420964,2.50101859,2304.8,2302.9,0.21736]
[1769983421163,2.50101859,2304.6,2302.9,0.21736]
[1769983421360,2.50101859,2304.6,2302.6,0.00318365]
[1769983421564,2.50101859,2304.3,2302.6,0.00318365]
[1769983421965,2.50101859,2303.9,2302.6,0.00318365]
[1769983422158,2.50101859,2303.5,2301.7,5.00450485]
[1769983422362,2.50101859,2303.4,2301.7,0.21747]
[1769983422562,2.50101859,2303.2,2301.1,0.21752]
[1769983422762,2.50101859,2302.9,2301.1,0.21752]
[1769983422962,6.02898694,2302.5,2300.5,5.11211997]
[1769983423166,2.71842859,2302.4,2300.5,0.00359806]
[1769983423465,2.50101859,2302.2,2300.5,0.00359806]
[1769983423868,8.53000553,2302.2,2300.5,0.00359806]
[1769983424171,6.02898694,2302.1,2300.6,0.00461896]
[1769983424365,2.50101859,2302.2,2300.6,0.00461896]
[1769983424565,8.52769604,2302.1,2300.6,0.00461896]
[1769983424764,6.02898694,2301.9,2300.6,0.00461896]
[1769983425167,8.52769604,2301.8,2300.6,0.00461896]
[1769983425463,2.4987091,2301.8,2300.6,0.00461896]
[1769983425668,3.911,2301.7,2300.6,0.00461896]
[1769983425871,6.02898694,2301.6,2300.6,0.00461896]
[1769983426070,6.02898694,2301.5,2300.6,0.00461896]
[1769983426466,2.495425,2302.3,2300.6,0.00461896]
[1769983426671,3.91605141,2302.5,2300.9,0.01379603]
[1769983426866,6.41147641,2302.5,2300.9,0.01379603]
[1769983427169,6.02898694,2302.2,2300.9,0.01379603]
[1769983427369,2.495425,2302.4,2301.1,0.01379603]
[1769983427570,2.49947641,2302.5,2301.3,0.01379603]
[1769983427872,6.02898694,2302.4,2301.3,0.01379603]
[1769983428074,12.44046335,2302.5,2301.3,0.01379603]
[1769983428370,6.02898694,2302.1,2301.2,5.01636306]
[1769983428569,2.49838894,2302.4,2301.1,0.00786816]
[1769983428769,2.49838894,2302.4,2301.2,5.01636306]
[1769983428969,6.02898694,2302.2,2301.2,5.01636306]
[1769983429172,6.02898694,2301.9,2301.2,5.01636306]
[1769983429370,6.02898694,2302.1,2301.3,5.01636306]
[1769983429571,8.33538848,2301.5,2301.2,5.06758185]
[1769983429773,2.30640154,2301.9,2300.7,2.41639542]
[1769983429968,6.461,2302.0,2300.8,7.52851539]
[1769983430168,6.461,2302.0,2300.8,2.41639542]
[1769983430364,6.02898694,2301.8,2300.8,7.52851539]
[1769983430565,6.461,2302.0,2300.8,7.52851539]
[1769983430766,2.30640154,2302.1,2300.9,2.41639542]
[1769983430973,6.02898694,2302.0,2300.9,7.52851539]
[1769983431168,6.02898694,2301.8,2300.8,5.11211997]
[1769983431474,2.30640154,2301.7,2300.7,5.11211997]
[1769983431677,6.21840154,2301.7,2300.6,5.11211997]
[1769983432068,6.21840154,2301.7,2300.5,0.00359806]
[1769983432069,6.79540154,2301.6,2300.5,0.00359806]
[1769983432270,6.02898694,2301.1,2300.5,0.00359806]
[1769983432671,9.40002452,2304.4,2300.5,0.00359806]
[1769983432672,6.02898694,2300.8,2300.5,0.00359806]
[1769983432873,0.00425591,2300.8,2299.8,6.39127947]
[1769983433075,0.00425591,2300.8,2299.9,8.80767489]
[1769983433275,0.00425591,2300.8,2299.7,8.80767489]
[1769983433474,2.31065745,2300.8,2299.6,6.39127947]
[1769983433771,2.31065745,2300.8,2299.6,2.41639542]
[1769983433979,0.00425591,2300.8,2299.7,6.39127947]
[1769983434276,6.02898694,2300.7,2299.6,8.81206371]
[1769983434476,6.02898694,2300.7,2299.6,2.42078424]
[1769983434673,0.00425591,2300.8,2299.6,2.42078424]
[1769983435176,2.30640154,2301.3,2299.9,1.48525798]
[1769983435374,2.30640154,2301.9,2300.2,1.48525798]
[1769983435677,2.30640154,2301.9,2300.4,1.48525798]
[1769983436076,2.30640154,2302.3,2300.8,1.4899759]
[1769983436278,2.3099996,2302.3,2300.8,1.4899759]
[1769983436477,3.913,2302.2,2300.8,1.4899759]
[1769983436776,6.21940154,2302.2,2300.8,1.7075359]
[1769983437071,6.21940154,2302.2,2301.1,3.83240709]
[1769983437279,2.30640154,2301.9,2301.0,3.83240709]
[1769983437572,10.70140154,2302.0,2301.0,3.83240709]
[1769983438077,6.02898694,2301.8,2301.0,3.83240709]
[1769983438277,6.21940154,2302.0,2301.1,3.83240709]
[1769983438477,6.21940154,2302.0,2301.0,3.83240709]
[1769983438869,6.02898694,2301.9,2301.0,3.83240709]
[1769983439276,2.30640154,2302.0,2301.0,3.83240709]
[1769983439470,6.02898694,2301.3,2300.6,3.83240709]
[1769983439670,2.30640154,2301.6,2300.7,3.83240709]
[1769983439671,3.913,2301.6,2300.7,3.83240709]
[1769983439872,6.02898694,2301.4,2300.7,3.83240709]
[1769983440177,2.30640154,2301.5,2300.7,3.83240709]
[1769983440379,2.30640154,2301.5,2300.6,3.83240709]
[1769983440380,6.02898694,2301.4,2300.6,3.83240709]
[1769983440578,6.02898694,2301.3,2300.6,3.83240709]
[1769983440979,2.30640154,2301.9,2300.7,5.24126448]
[1769983441279,6.21940154,2302.7,2301.3,5.24126448]
[1769983441475,2.30640154,2302.7,2301.4,5.24126448]
[1769983441676,3.913,2302.6,2301.5,4.8419077]
[1769983441871,2.30640154,2302.7,2301.6,4.8419077]
[1769983442072,2.30640154,2302.7,2301.7,4.8419077]
[1769983442276,2.30640154,2302.3,2301.7,4.8419077]
[1769983442473,2.30640154,2302.0,2301.1,4.84563722]
[1769983442780,2.30640154,2301.8,2300.6,1.3845641]
[1769983442983,2.40130371,2302.5,2301.2,4.03444572]
[1769983443178,2.40130371,2302.4,2301.0,3.83240709]
[1769983443577,0.00338516,2302.4,2301.2,0.20203863]
[1769983443777,2.40130371,2303.6,2302.1,3.83240709]
[1769983443981,2.40130371,2303.6,2302.3,4.03444572]
[1769983444786,2.40247232,2303.6,2302.3,4.03444572]
[1769983445386,0.00116861,2303.6,2302.4,4.04625637]
[1769983445576,2.39539838,2304.0,2302.9,3.83240709]
[1769983446083,4.472,2304.3,2303.0,4.03875219]
[1769983446283,2.39915047,2304.1,2303.0,4.03875219]
[1769983446482,6.31215047,2304.1,2303.1,3.83240709]
[1769983446685,2.39915047,2304.1,2303.1,3.83624761]
[1769983446983,2.39915047,2304.1,2303.1,0.00384052]
[1769983447787,2.39529144,2303.9,2303.1,0.00384052]
[1769983448681,2.39529144,2304.6,2303.1,0.21848484]
[1769983448983,4.94429144,2304.5,2303.3,3.83240709]
[1769983449190,6.30729144,2304.5,2303.3,3.83240709]
[1769983449386,0.21713,2305.4,2303.4,0.21464432]
[1769983449586,2.39529144,2305.2,2303.4,0.21464432]
[1769983449787,2.39529144,2305.0,2303.5,0.21464432]
[1769983450291,8.20006666,2304.1,2303.5,0.21464432]
[1769983451486,2.3997629,2304.7,2303.1,6.60082138]
[1769983451987,2.62637397,2304.5,2302.9,6.39127947]
[1769983452186,2.40916397,2304.5,2302.4,2.28950248]
[1769983452589,2.26551068,2304.3,2302.4,2.28950248]
[1769983452784,2.26551068,2304.1,2302.4,2.28950248]
[1769983452985,2.26551068,2303.6,2302.0,2.28950248]
[1769983453186,2.26551068,2303.6,2302.4,0.00347773]
[1769983453786,2.26551068,2303.4,2301.6,2.28950248]
[1769983453987,8.72551068,2303.3,2301.6,2.28950248]
[1769983454285,2.26551068,2303.2,2301.6,2.28950248]
[1769983454494,2.26551068,2303.2,2301.7,6.80220752]
[1769983454790,2.26551068,2303.2,2301.8,4.51270504]
[1769983454992,4.454,2303.1,2301.8,4.51270504]
[1769983455291,2.26551068,2302.9,2301.7,0.00330031]
[1769983455494,6.46,2302.8,2301.7,0.00330031]
[1769983455890,2.26551068,2302.7,2301.7,0.00330031]
[1769983456589,0.00534356,2302.9,2301.7,2.29280279]
[1769983456893,2.27085424,2302.9,2301.7,2.29280279]
[1769983457191,2.27085424,2302.9,2301.8,6.7992582]
[1769983457592,2.27085424,2302.9,2301.7,0.00330031]
[1769983458592,0.00534356,2302.9,2301.7,2.29280279]
[1769983458797,0.00534356,2302.9,2301.8,6.7992582]
[1769983458999,0.00534356,2302.9,2301.9,2.28950248]
[1769983459197,0.00534356,2302.9,2301.9,6.7992582]
[1769983459496,0.00534356,2302.9,2301.7,0.00330031]
[1769983459497,0.00534356,2302.9,2302.1,2.28950248]
[1769983459796,2.26551068,2303.7,2302.3,2.28950248]
[1769983459991,2.26551068,2304.2,2302.5,2.28950248]
[1769983460194,6.17651068,2304.5,2302.7,2.50688248]
[1769983460395,2.26551068,2304.4,2302.9,2.28950248]
[1769983460591,0.00197468,2304.4,2303.1,2.28950248]
[1769983460797,0.00197468,2304.4,2303.2,6.7992582]
[1769983461000,2.26748536,2304.4,2302.9,2.28950248]
[1769983462496,2.26748536,2304.4,2303.0,2.28950248]
[1769983462791,2.26748536,2304.4,2302.4,3.47268158]
[1769983462792,2.26551068,2303.7,2302.1,2.28950248]
[1769983462990,3.911,2303.7,2302.2,2.28950248]
[1769983463389,3.911,2303.7,2302.1,3.47268158]
[1769983463390,4.306,2304.0,2302.4,2.28950248]
[1769983463590,0.00197468,2304.4,2302.9,2.28950248]
[1769983463897,0.00197468,2304.4,2302.9,2.50686248]
[1769983464098,0.00197468,2304.4,2303.0,2.28950248]
[1769983464296,2.26551068,2304.1,2302.5,2.28950248]
[1769983464498,3.911,2304.3,2302.5,2.50689248]
[1769983464895,2.26748536,2304.4,2302.7,2.28950248]
[1769983465095,2.26551068,2304.2,2302.7,2.28950248]
[1769983465601,2.26551068,2304.0,2302.7,2.28950248]
[1769983465800,2.26551068,2303.8,2302.3,2.28950248]
[1769983466001,2.26551068,2303.6,2302.3,2.28950248]
[1769983466302,6.17651068,2303.6,2302.3,2.28950248]
[1769983467005,2.26551068,2303.5,2301.9,2.28950248]
[1769983467201,2.48282068,2303.5,2302.1,2.57093482]
[1769983467502,2.26551068,2303.3,2302.1,2.57093482]
[1769983468100,3.47465626,2304.4,2301.7,0.00330031]
[1769983468101,2.26551068,2303.0,2301.7,0.00330031]
[1769983468301,10.60851068,2302.9,2301.7,0.00330031]
[1769983468604,8.344,2302.8,2301.7,0.00330031]
[1769983468808,10.60951068,2302.8,2301.7,0.00330031]
[1769983469100,2.26551068,2303.2,2301.7,2.29280279]